{"text_format":"1","workbook":"xlsx","n_sheets":2,"sheets":["Бланк","Бригада"],"not_rendered":{"charts":0,"images":1,"macros":1,"external_links":0,"defined_names":1,"comments":0,"pivot_tables":0},"unopened":[],"bounds":{"document_bytes":16777216,"sheet_cells":100000,"rows_first":2000,"rows_last":500,"rows_between":2000,"halvings":0,"cell_chars":16384,"cell_head_chars":4096},"cells_cut":0,"cells_raw":0,"read":"whole","date_system":"1900"}

{"sheet":"Бланк","index":0,"n_rows":10,"n_cols":2,"rows_kept":10,"cut":false,"hidden":false,"merged":[]}
["Гисматулин А.Р.,гр.4","член бригады"]
["Гисматулин А.Р.,гр.4","член бригады"]
["Гисматулин А.Р.,гр.4","член бригады"]
["Карамышев Д.В.,гр.4","член бригады"]
["Корнильцев А.Г.,гр.4","член бригады"]
["Гобов И.В.,гр.4","член бригады"]
[]
[]
[]
["Иванов Д.С.,гр.4","производитель"]

{"sheet":"Бригада","index":1,"n_rows":55,"n_cols":8,"rows_kept":55,"cut":false,"hidden":false,"merged":[]}
["список членов бригады (вносятся вручную)",1,2,3,4,5,6,"производитель (вносятся вручную)"]
["Гац А.В.,гр.4",{"$f":"IF(A$14=A2,\" \",A2)","v":" "}," "," "," "," "," ","Гац А.В.,гр.4"]
["Гисматулин А.Р.,гр.4","Гисматулин А.Р.,гр.4","Гисматулин А.Р.,гр.4","Гисматулин А.Р.,гр.4"," "," "," ","Гисматулину А.Р.,гр.4"]
["Гобов И.В.,гр.4",{"$f":"IF(A$14=A4,\"\",A4)","v":"Гобов И.В.,гр.4"},"Гобов И.В.,гр.4","Гобов И.В.,гр.4","Гобов И.В.,гр.4","Гобов И.В.,гр.4","Гобов И.В.,гр.4","Гобову И.В.,гр.4"]
["Давыдов А.Н.,гр.4",{"$f":"IF(A$14=A5,\" \",A5)","v":"Давыдов А.Н.,гр.4"}," "," "," "," "," ","Давыдову А.Н., гр.4"]
["Иванов Д.С.,гр.4","Иванов Д.С.,гр.4","Иванов Д.С.,гр.4"," "," "," "," ","Иванову Д.С.,гр.4"]
["Карамышев Д.В.,гр.4","Карамышев Д.В.,гр.4","Карамышев Д.В.,гр.4","Карамышев Д.В.,гр.4","Карамышев Д.В.,гр.4"," "," ","Карамышеву Д.В.,гр.4"]
["Корнильцев А.Г.,гр.4","Корнильцев А.Г.,гр.4","Корнильцев А.Г.,гр.4","Корнильцев А.Г.,гр.4","Корнильцев А.Г.,гр.4","Корнильцев А.Г.,гр.4","Корнильцев А.Г.,гр.4","Корнильцеву А.Г.,гр.5"]
["Кузин Е.А.,гр.4","Кузин Е.А.,гр.4","Кузин Е.А.,гр.4","Кузин Е.А.,гр.4","Кузин Е.А.,гр.4","Кузин Е.А.,гр.4","Кузин Е.А.,гр.4","Кузину Е.А.,гр.4"]
["Михайличенко П.П.,гр.5","Михайличенко П.П.,гр.5","Михайличенко П.П.,гр.5","Михайличенко П.П.,гр.5","Михайличенко П.П.,гр.5","Михайличенко П.П.,гр.5","Михайличенко П.П.,гр.5","Михайличенко П.П.,гр.5"]
["Сергеев Э.Н.,гр.4","Сергеев Э.Н.,гр.4","Сергеев Э.Н.,гр.4","Сергеев Э.Н.,гр.4","Сергеев Э.Н.,гр.4","Сергеев Э.Н.,гр.4","Сергеев Э.Н.,гр.4","Сергееву Э.Н.,гр.4"]
["Степанец В.А.,гр.4","Степанец В.А.,гр.4","Степанец В.А.,гр.4","Степанец В.А.,гр.4","Степанец В.А.,гр.4","Степанец В.А.,гр.4","Степанец В.А.,гр.4","Степанцу В.А.,гр.4"]
[]
[{"$f":"INDEX(A2:A12,MATCH(A15,H2:H12,0),1)","v":"Гац А.В.,гр.4"},"Давыдов А.Н.,гр.4","Иванов Д.С.,гр.4","Гисматулин А.Р.,гр.4","Карамышев Д.В.,гр.4","Давыдов А.Н.,гр.4","Кузин Е.А.,гр.4"]
["Гац А.В.,гр.4",{"$f":"IF(B14=\"\",\"\",B14)&IF(TRIM(B14)=\"\",\"\",\";\")","v":"Давыдов А.Н.,гр.4;"},"Иванов Д.С.,гр.4;","Гисматулин А.Р.,гр.4;","Карамышев Д.В.,гр.4;","Давыдов А.Н.,гр.4;","Кузин Е.А.,гр.4;"]
[{"$f":"IF(A14=\"\",\"\",A14&\";\")","v":"Гац А.В.,гр.4;"}]
[]
[]
[]
[]
[]
[]
[null,"Члены бригады - данные уходят на бланк (не удалять)"]
[null,{"$f":"B15&\" \"&C15&\" \"&D15&\" \"&E15&\" \"&F15&\" \"&G15","v":"Давыдов А.Н.,гр.4; Иванов Д.С.,гр.4; Гисматулин А.Р.,гр.4; Карамышев Д.В.,гр.4; Давыдов А.Н.,гр.4; Кузин Е.А.,гр.4;"},{"$f":"MID(B25,1,FIND(\";\",B25,1))","v":"Давыдов А.Н.,гр.4;"},{"$f":"MID(C25,1,FIND(\";\",C25,1))","v":"Иванов Д.С.,гр.4;"},{"$f":"MID(D25,1,FIND(\";\",D25,1))","v":"Гисматулин А.Р.,гр.4;"},"Карамышев Д.В.,гр.4;","Давыдов А.Н.,гр.4;","Кузин Е.А.,гр.4;"]
[null,{"$f":"B15&C15&D15&E15&F15&G15","v":"Давыдов А.Н.,гр.4;Иванов Д.С.,гр.4;Гисматулин А.Р.,гр.4;Карамышев Д.В.,гр.4;Давыдов А.Н.,гр.4;Кузин Е.А.,гр.4;"},{"$f":"MID(B25,FIND(\";\",B25,1)+1,1000)","v":"Иванов Д.С.,гр.4;Гисматулин А.Р.,гр.4;Карамышев Д.В.,гр.4;Давыдов А.Н.,гр.4;Кузин Е.А.,гр.4;"},{"$f":"MID(C25,FIND(\";\",C25,1)+1,1000)","v":"Гисматулин А.Р.,гр.4;Карамышев Д.В.,гр.4;Давыдов А.Н.,гр.4;Кузин Е.А.,гр.4;"},"Карамышев Д.В.,гр.4;Давыдов А.Н.,гр.4;Кузин Е.А.,гр.4;","Давыдов А.Н.,гр.4;Кузин Е.А.,гр.4;","Кузин Е.А.,гр.4;",""]
[]
[]
[]
[]
[]
[]
[]
[]
[]
[]
[]
[]
[]
[]
[]
[]
[]
[]
[]
[]
[]
[]
[]
[]
[]
[]
[]
[]
[]
["Гац А.В.,гр.4"]